bitfinex/quotes_ETHUSD_20251023
["timestamp","ask_amount","ask_price","bid_price","bid_amount"]
[1761229226491,4.6482,3819.1,3817.6,0.4277]
[1761229226729,3.093,3819.1,3817.9,2.61918408]
[1761229227029,2.61753501,3819.3,3818.3,2.61891024]
[1761229227213,2.61753501,3819.3,3817.9,0.0261924]
[1761229227214,3.56,3819.0,3818.1,2.61908456]
[1761229227393,3.56,3819.0,3818.4,2.61888336]
[1761229227596,3.56,3819.0,3818.3,2.61891644]
[1761229227795,3.56,3819.0,3818.2,2.61902388]
[1761229227995,2.61821425,3819.4,3818.2,0.6475]
[1761229228226,3.56,3819.0,3818.2,3.26653442]
[1761229228418,3.56,3819.0,3818.6,2.6187606]
[1761229228616,3.559,3819.1,3818.7,3.04637284]
[1761229228816,3.559,3819.1,3818.7,0.4277]
[1761229229127,3.559,3819.1,3818.2,2.83882999]
[1761229229431,3.559,3819.1,3818.5,2.61880327]
[1761229229648,2.61768846,3820.2,3818.5,2.61880327]
[1761229229649,3.559,3819.0,3818.5,2.61877671]
[1761229229929,3.559,3819.0,3818.3,3.06061253]
[1761229230110,3.559,3819.0,3818.4,2.61887796]
[1761229230305,3.559,3819.0,3818.3,3.06062401]
[1761229230605,0.001,3819.2,3818.8,2.61861656]
[1761229230806,0.001,3819.2,3818.8,0.50688]
[1761229231007,0.001,3819.2,3818.8,0.4417]
[1761229231304,0.001,3819.2,3819.1,2.61841795]
[1761229231495,0.001,3819.2,3818.8,0.4417]
[1761229231697,0.001,3819.2,3818.1,0.4417]
[1761229231929,0.001,3819.2,3818.3,0.94858]
[1761229232116,0.001,3819.2,3818.6,2.61871994]
[1761229232324,0.001,3819.2,3818.7,2.61869063]
[1761229232497,0.001,3819.2,3818.8,0.4417]
[1761229232832,0.001,3819.2,3818.3,0.50688]
[1761229232833,0.001,3819.2,3818.5,2.61882041]
[1761229233032,0.001,3819.2,3818.3,3.06061956]
[1761229233195,0.001,3819.2,3818.5,2.61882938]
[1761229233397,0.001,3819.2,3818.5,2.61878176]
[1761229233693,2.61851289,3819.0,3818.0,0.4417]
[1761229233921,0.02482278,3818.9,3818.0,0.4417]
[1761229234136,3.558,3818.8,3818.0,0.4417]
[1761229234306,3.558,3818.8,3818.1,2.61909171]
[1761229234497,3.558,3818.8,3818.0,3.06082709]
[1761229234730,3.558,3818.8,3818.0,3.06085424]
[1761229234731,6.17663341,3818.8,3818.0,3.06085424]
[1761229234898,0.1312,3818.7,3818.1,0.1312]
[1761229235101,2.64358379,3818.6,3817.5,0.659]
[1761229235463,0.02482278,3818.5,3817.5,0.2173]
[1761229235596,0.1312,3818.1,3817.6,0.1312]
[1761229236125,0.1312,3818.1,3817.1,0.4417]
[1761229236126,3.557,3818.1,3817.3,0.2138]
[1761229236302,2.61917234,3818.0,3817.3,0.2138]
[1761229236630,2.61917234,3818.0,3816.9,2.61988297]
[1761229236631,2.61937493,3817.8,3816.9,2.61988297]
[1761229236854,2.61937493,3817.8,3817.0,2.61985185]
[1761229237021,0.02482278,3817.9,3816.9,2.61988098]
[1761229237348,2.61957084,3817.5,3816.6,2.8374128]
[1761229237648,2.619711,3817.3,3816.6,0.2173]
[1761229237948,2.619711,3817.3,3816.3,0.52864913]
[1761229237949,0.02482278,3817.2,3816.3,0.52864913]
[1761229238344,2.61890416,3818.4,3816.4,0.4417]
[1761229238345,3.557,3817.1,3816.4,0.4417]
[1761229238503,3.557,3817.2,3816.4,0.4417]
[1761229238700,0.1934,3819.1,3816.7,0.50688]
[1761229239022,1.92882278,3819.0,3817.5,2.61946218]
[1761229239225,4.52248878,3819.0,3817.4,0.02619584]
[1761229239534,4.52248878,3819.0,3817.5,0.6555]
[1761229239535,0.101,3818.9,3817.5,0.6555]
[1761229239741,0.001,3819.2,3817.7,0.50688]
[1761229239910,0.001,3819.2,3818.7,2.61862666]
[1761229240109,1.964,3819.1,3817.8,0.4417]
[1761229240326,2.1565,3819.1,3818.3,2.61896095]
[1761229240650,2.1565,3819.1,3818.2,0.2138]
[1761229240859,0.001,3819.2,3818.6,2.6187298]
[1761229241023,3.557,3819.0,3818.6,2.6187298]
[1761229241221,3.557,3819.0,3818.2,0.6555]
[1761229241222,3.557,3819.0,3818.2,3.274532]
[1761229241421,3.557,3819.0,3818.9,2.61855508]
[1761229241728,0.001,3819.2,3819.1,2.61841795]
[1761229241929,0.001,3819.2,3819.1,3.06011795]
[1761229242460,0.001,3819.2,3818.5,2.6188093]
[1761229242663,0.001,3819.2,3818.5,2.61877718]
[1761229242967,0.001,3819.2,3818.2,0.6555]
[1761229243130,0.1916,3819.1,3818.4,2.61887995]
[1761229243464,0.1916,3819.1,3818.2,0.2138]
[1761229243960,2.81003523,3819.1,3818.2,0.2138]
[1761229244130,0.1916,3819.1,3818.2,0.2138]
[1761229244330,0.1916,3819.1,3818.2,2.83282267]
[1761229244531,2.81002795,3819.1,3818.3,2.61892716]
[1761229244968,0.1916,3819.1,3818.3,2.61896589]
[1761229245268,0.1916,3819.1,3818.3,2.61896655]
[1761229245448,0.001,3819.2,3818.2,0.2138]
[1761229245636,3.556,3819.1,3818.6,2.61869854]
[1761229245836,0.001,3819.2,3818.5,2.61882325]
[1761229246041,3.7505,3819.1,3818.7,0.1312]
[1761229246436,3.556,3819.1,3818.7,0.1312]
[1761229246761,0.001,3819.2,3818.7,0.1312]
[1761229246969,3.7486,3819.1,3818.7,0.1312]
[1761229247179,0.1312,3818.9,3818.4,0.1312]
[1761229247469,3.555,3818.8,3818.4,2.61883299]
[1761229247764,3.555,3818.8,3818.2,2.8328294]
[1761229247930,2.61939437,3819.2,3818.7,0.1312]
[1761229247931,3.555,3819.0,3818.7,0.1312]
[1761229248142,3.555,3819.0,3818.9,0.1312]
[1761229248587,3.555,3819.0,3818.9,0.5729]
[1761229248875,3.555,3819.0,3818.9,0.1312]
[1761229249051,3.555,3819.1,3818.7,2.61868399]
[1761229249251,3.555,3819.1,3818.3,0.94858]
[1761229249478,3.555,3819.1,3818.7,0.50688]
[1761229249651,3.555,3819.1,3818.6,2.61871882]
[1761229250060,3.555,3819.0,3818.4,2.61889796]
[1761229250262,3.555,3819.0,3818.3,0.4417]
[1761229250263,3.555,3819.0,3818.3,2.61894812]
[1761229250473,3.555,3819.0,3818.3,0.4417]
[1761229250786,0.001,3819.2,3818.5,2.61882132]
[1761229250945,3.555,3818.9,3818.3,3.12584655]
[1761229251140,3.555,3818.9,3818.4,2.61889796]
[1761229251478,3.555,3818.9,3818.2,0.2138]
[1761229251479,3.555,3818.9,3818.2,2.83282402]
[1761229251675,3.555,3818.9,3817.8,2.61928373]
[1761229251676,0.1955,3818.8,3817.8,2.61928373]
[1761229251975,0.02482278,3818.7,3818.0,2.61916905]
[1761229252141,2.6435619,3818.7,3818.1,0.2138]
[1761229252543,2.6435619,3818.7,3817.9,2.61923072]
[1761229252544,2.61876577,3818.6,3817.9,2.61923072]
[1761229252743,0.02482278,3818.7,3817.5,0.2138]
[1761229252939,1.7507,3818.8,3817.6,0.46789446]
[1761229252940,0.1955,3818.8,3817.6,0.46789446]
[1761229253174,3.554,3818.6,3817.7,2.61937815]
[1761229253479,3.554,3818.6,3817.9,2.6192261]
[1761229253773,3.67882278,3818.6,3817.4,0.2138]
[1761229253972,3.67882278,3818.6,3817.3,0.002]
[1761229253973,1.6552,3818.5,3817.3,0.002]
[1761229254172,1.5552,3818.3,3817.3,0.002]
[1761229254473,0.1,3818.4,3817.3,0.002]
[1761229254672,1.5552,3818.3,3817.5,2.6194954]
[1761229254978,1.5552,3818.5,3817.3,0.4437]
[1761229255276,0.12482278,3818.9,3817.4,0.50688]
[1761229255475,3.554,3818.4,3817.6,0.50688]
[1761229255845,3.554,3818.4,3817.3,0.4437]
[1761229256156,6.1729128,3818.4,3817.6,2.61943829]
[1761229256355,1.5552,3818.3,3817.6,0.50688]
[1761229256558,4.17417609,3818.3,3817.6,3.12632314]
[1761229256756,3.554,3818.4,3817.5,0.50688]
[1761229256957,2.61874535,3818.7,3817.9,2.61919412]
[1761229257187,2.61858565,3818.9,3818.0,0.50688]
[1761229257392,3.554,3818.6,3818.1,0.2138]
[1761229257561,0.1945,3819.1,3818.1,2.83288382]
[1761229257760,4.17379756,3818.9,3818.2,2.61902674]
[1761229257960,4.17375638,3818.9,3818.1,2.83287747]
[1761229258145,1.58002278,3818.9,3818.1,0.2138]
[1761229258479,1.58002278,3818.9,3817.7,2.61932698]
[1761229258480,2.6188341,3818.5,3817.7,2.61932698]
[1761229258691,0.1945,3819.1,3817.3,0.002]
[1761229258887,0.1945,3819.1,3818.0,2.61912748]
[1761229258888,1.5552,3818.9,3818.0,2.61912748]
[1761229259050,1.6864,3818.6,3818.1,0.1312]
[1761229259249,0.1312,3818.6,3818.1,0.1312]
[1761229259447,3.554,3818.5,3818.1,0.1312]
[1761229259871,6.1728437,3818.5,3818.1,0.1312]
[1761229260253,3.554,3818.5,3818.1,0.1312]
[1761229260581,3.554,3818.4,3818.1,0.1312]
[1761229260757,3.554,3818.4,3817.5,0.50688]
[1761229260963,2.61930778,3817.9,3817.3,0.002]
[1761229261175,0.1312,3817.6,3817.3,0.002]
[1761229261351,2.61888873,3818.5,3817.3,0.002]
[1761229261352,3.554,3817.9,3817.3,0.002]
[1761229261551,0.2004,3817.4,3817.3,0.002]
[1761229261797,3.7534,3817.4,3817.3,0.002]
[1761229262285,6.50418401,3817.4,3817.3,0.002]
[1761229262451,8.16038401,3817.4,3817.3,0.002]
[1761229262851,22.30010858,3817.4,3817.3,0.001]
[1761229263090,22.98543493,3817.4,3817.3,0.001]
[1761229263306,22.30010858,3817.4,3817.3,0.001]
[1761229263623,22.30010858,3817.4,3816.0,0.002]
[1761229263624,2.6204764,3816.1,3816.0,0.002]
[1761229263914,2.6204764,3816.1,3815.6,0.002]
[1761229263915,4.1759511,3815.7,3815.6,0.002]
[1761229264071,2.62157556,3814.5,3813.1,0.58282858]
[1761229264273,2.62157556,3814.5,3813.1,0.13682858]
[1761229264274,7.75459834,3814.5,3813.1,0.13682858]
[1761229264471,21.55075521,3814.5,3812.2,0.446]
[1761229264975,1.5552,3814.5,3813.5,0.446]
[1761229265174,3.553,3814.5,3814.1,0.2327]
[1761229265373,3.553,3814.5,3813.5,0.2327]
[1761229265575,3.553,3814.5,3813.6,0.50888]
[1761229265886,3.553,3814.5,3814.2,2.6217806]
[1761229266080,0.02482278,3815.1,3814.2,2.6217806]
[1761229266303,0.02482278,3815.1,3813.8,0.446]
[1761229266304,6.17428975,3815.0,3813.8,0.446]
[1761229266516,0.02482278,3814.9,3813.8,0.446]
[1761229266729,0.02482278,3814.9,3813.6,0.50888]
[1761229266730,4.37517556,3814.5,3813.6,0.002]
[1761229267007,7.95399834,3814.5,3813.6,0.002]
[1761229267208,8.02717556,3814.5,3814.4,0.001]
[1761229267501,8.53405556,3814.5,3814.4,0.001]
[1761229267706,8.53405556,3814.5,3813.6,0.002]
[1761229267707,4.6839305,3814.1,3813.6,0.002]
[1761229268015,18.43073293,3814.1,3813.6,0.002]
[1761229268172,18.50391015,3814.1,3813.6,0.002]
[1761229269072,24.02291015,3814.1,3813.6,0.002]
[1761229270207,24.02291015,3814.1,3811.3,0.13989229]
[1761229270208,1.5552,3814.0,3811.3,0.13989229]
[1761229270507,1.5552,3811.7,3811.3,0.003]
[1761229270741,0.1979,3811.4,3811.3,0.003]
[1761229270941,3.554,3811.4,3811.3,0.2357]
[1761229271817,0.02482278,3811.9,3811.3,0.2357]
[1761229272016,3.555,3811.8,3811.3,0.2357]
[1761229272543,3.555,3811.7,3811.3,0.6817]
[1761229272728,3.555,3811.7,3811.4,2.62370782]
[1761229272931,3.555,3811.7,3811.3,0.3669]
[1761229273242,3.555,3811.7,3811.3,0.003]
[1761229273910,2.62304145,3812.4,3811.6,0.2327]
[1761229274116,3.57982278,3812.3,3811.3,0.449]
[1761229274333,3.57982278,3812.3,3811.4,2.62364371]
[1761229274539,0.02482278,3812.3,3811.6,2.62353839]
[1761229274747,2.62275503,3812.8,3811.7,2.64971218]
[1761229275041,3.57982278,3812.7,3811.3,0.449]
[1761229275447,3.57982278,3812.7,3811.3,0.003]
[1761229275448,1.6552,3812.6,3811.3,0.003]
[1761229275743,1.5552,3812.3,3811.3,0.003]
[1761229275942,3.555,3812.2,3811.4,0.446]
[1761229276252,3.555,3812.1,3811.4,0.446]
[1761229276547,0.22172278,3812.9,3811.4,0.446]
[1761229276548,3.556,3812.0,3811.4,2.62370426]
[1761229276722,3.556,3811.9,3811.8,2.62343249]
[1761229276919,3.555,3811.9,3811.7,2.62349433]
[1761229277255,2.81958488,3812.9,3811.8,0.2327]
[1761229277256,0.1969,3812.9,3811.8,0.2327]
[1761229277422,0.02482278,3812.8,3811.8,0.2327]
[1761229277765,0.894,3812.7,3811.8,0.6787]
[1761229277914,0.02482278,3813.5,3812.3,2.62307535]
[1761229278116,2.62261241,3813.0,3811.8,0.2327]
[1761229278413,0.02482278,3812.9,3812.3,2.6230383]
[1761229278618,3.556,3812.8,3812.2,2.62313439]
[1761229278843,3.58082278,3812.7,3812.2,2.62314282]
[1761229279030,0.02482278,3812.7,3812.2,2.62314282]
[1761229279230,3.556,3812.6,3812.2,0.446]
[1761229279542,3.556,3812.5,3812.4,2.62295353]
[1761229279849,1.5552,3813.8,3812.2,3.06913536]
[1761229279850,0.099,3814.1,3812.3,0.02623088]
[1761229280012,1.966,3814.3,3812.3,0.47223088]
[1761229280218,0.39182278,3814.2,3812.3,0.446]
[1761229280412,0.39182278,3814.2,3812.8,2.62273287]
[1761229280413,2.62221399,3813.6,3812.8,2.62273287]
[1761229280748,0.2974,3814.5,3812.4,0.50688]
[1761229280951,0.1984,3814.5,3812.6,0.50688]
[1761229281246,1.886,3814.4,3814.2,2.62177487]
[1761229281445,2.62117728,3815.1,3814.0,2.62191877]
[1761229281446,1.886,3814.3,3814.0,2.62191877]
[1761229281644,1.886,3814.3,3814.2,2.62178176]
[1761229281815,1.886,3814.3,3814.2,3.06778176]
[1761229282216,0.1925,3815.3,3814.2,3.06778176]
[1761229282217,2.720683,3815.8,3814.8,2.62132119]
[1761229282421,3.555,3815.7,3814.9,2.6212939]
[1761229282632,3.57982278,3815.6,3814.4,0.446]
[1761229282832,0.02482278,3815.6,3814.4,0.446]
[1761229283035,0.375,3815.5,3815.3,2.62097707]
[1761229283249,0.1312,3815.8,3815.3,0.1312]
[1761229283453,0.1907,3816.7,3816.0,2.62051571]
[1761229283656,0.1312,3816.3,3816.1,0.2327]
[1761229283831,3.555,3816.4,3816.1,0.3639]
[1761229284021,3.555,3816.6,3816.1,0.8099]
[1761229284218,3.555,3816.6,3816.1,0.3639]
[1761229284452,0.1945,3817.2,3816.4,2.62024489]
[1761229284622,0.1312,3816.9,3816.3,0.1312]
[1761229285137,3.555,3816.8,3816.3,2.75148615]
[1761229285450,2.62035859,3816.3,3815.9,0.1312]
[1761229285654,2.62035859,3816.3,3814.8,0.2327]
[1761229285655,2.77630487,3816.4,3815.6,2.62075963]
[1761229285859,0.1312,3816.1,3815.5,2.75208451]
[1761229286066,3.555,3816.0,3815.5,0.5654]
[1761229286250,3.554,3816.6,3816.2,2.62034392]
[1761229286450,3.554,3816.6,3815.9,2.85741096]
[1761229286451,0.02482278,3816.5,3815.9,2.85741096]
[1761229286656,0.1312,3816.4,3815.9,2.85741096]
[1761229286854,0.1312,3816.4,3816.2,2.62034552]
[1761229287078,2.6193926,3817.7,3816.3,0.02620339]
[1761229287236,0.219,3817.6,3816.1,2.64668116]
[1761229287568,0.219,3817.6,3817.0,2.61980029]
[1761229287769,2.91654044,3818.1,3816.3,0.50688]
[1761229287770,0.1974,3818.1,3816.3,0.50688]
[1761229288080,0.1974,3818.1,3816.4,2.62027041]
[1761229288280,0.85882278,3818.0,3816.4,0.50688]
[1761229288459,0.85882278,3818.0,3816.3,0.4342]
[1761229288635,1.6561,3817.9,3815.9,0.2368]
[1761229288830,0.02482278,3817.8,3816.0,0.4504]
[1761229289053,2.61974519,3817.2,3816.1,2.6204764]
[1761229289274,3.554,3817.1,3816.5,2.6201519]
[1761229289438,3.554,3817.1,3816.3,2.62033907]
[1761229289439,3.554,3817.1,3816.3,2.62028517]
[1761229289641,3.554,3817.1,3816.2,0.4504]
[1761229289840,0.02482278,3817.0,3816.3,2.62033769]
[1761229290370,0.02482278,3817.0,3816.0,3.07092768]
[1761229290546,0.02482278,3817.0,3816.0,3.07088981]
[1761229290747,0.1936,3816.9,3815.9,0.2368]
[1761229290966,0.1936,3816.9,3815.4,0.4504]
[1761229290967,0.02482278,3816.8,3815.6,0.216]
[1761229291276,0.02482278,3816.7,3814.5,0.4504]
[1761229291568,0.02482278,3816.7,3813.4,0.76]
[1761229291569,2.62033907,3816.3,3814.9,0.4504]
[1761229291872,0.1936,3816.9,3814.9,0.4504]
[1761229291873,0.02482278,3816.2,3814.9,0.4504]
[1761229292171,0.1936,3816.9,3815.2,0.50688]
[1761229292172,0.162,3816.5,3815.2,0.50688]
[1761229292378,0.162,3816.5,3815.7,2.62074262]
[1761229292540,0.162,3816.5,3815.3,0.4504]
[1761229292541,0.18682278,3816.5,3815.6,2.62078915]
[1761229292736,0.18682278,3816.5,3815.3,0.4504]
[1761229292990,0.18682278,3816.5,3815.7,2.62070397]
[1761229293237,0.1936,3816.9,3815.9,2.62056493]
[1761229293394,3.553,3816.4,3815.3,0.4504]
[1761229293548,3.553,3816.4,3815.7,2.62073439]
[1761229293745,3.553,3816.4,3815.4,0.50688]
[1761229294054,2.62018399,3816.6,3815.8,2.62063926]
[1761229294277,3.552,3816.3,3816.0,2.62050608]
[1761229294454,0.1936,3816.9,3815.5,0.50688]
[1761229294651,3.552,3816.8,3816.2,2.6203829]
[1761229294847,2.62011634,3816.7,3815.9,3.28695728]
[1761229295047,2.61956812,3817.5,3816.7,2.62002642]
[1761229295266,3.552,3817.4,3816.3,0.50688]
[1761229295467,2.084,3817.3,3816.9,2.61986979]
[1761229295668,1.7516,3818.3,3817.0,2.6198363]
[1761229295669,0.1964,3818.3,3817.0,2.6198363]
[1761229295879,0.1964,3818.3,3816.4,0.0262027]
[1761229295880,3.11,3818.2,3816.4,0.4504]
[1761229296060,2.61937849,3817.7,3816.9,2.6199197]
[1761229296280,0.02482278,3817.6,3816.4,0.4504]
[1761229296487,0.02482278,3817.6,3816.0,0.50688]
[1761229296488,2.62001061,3816.8,3816.0,2.62054507]
[1761229296794,3.552,3816.7,3816.2,2.62040468]
[1761229297081,3.552,3817.0,3816.2,1.5552]
[1761229297259,3.552,3817.0,3816.7,2.62006424]
[1761229297457,0.02482278,3817.3,3816.4,2.62026748]
[1761229297663,1.5552,3817.1,3816.3,3.07073537]
[1761229297862,1.5552,3817.1,3816.3,0.4504]
[1761229298159,3.552,3817.2,3816.5,2.62013754]
[1761229298480,0.1,3818.4,3816.6,0.02620133]
[1761229298688,3.57582278,3818.2,3817.6,2.61942602]
[1761229298849,3.57582278,3818.2,3817.0,0.50688]
[1761229298850,1.5552,3818.1,3817.0,0.50688]
[1761229299045,0.02482278,3818.2,3817.2,0.50688]
[1761229299262,0.1019,3818.9,3817.2,0.50688]
[1761229299263,1.716,3818.1,3817.3,2.6196022]
[1761229299487,4.33522456,3818.0,3817.3,2.6196022]
[1761229299678,1.716,3818.0,3817.4,2.61957049]
[1761229300500,2.61908472,3818.2,3817.5,2.61950634]
[1761229300659,0.001,3818.9,3818.0,2.61912783]
[1761229300876,0.001,3818.9,3817.6,0.47659446]
[1761229300877,0.358,3818.8,3817.7,3.12625815]
[1761229301100,0.001,3818.9,3817.2,1.5552]
[1761229301101,0.001,3818.9,3818.0,2.61917234]
[1761229301301,0.001,3818.9,3818.8,3.34150365]
[1761229301616,0.001,3818.9,3818.8,4.89670365]
[1761229301901,0.001,3818.9,3818.8,5.37328988]
[1761229302087,0.001,3818.9,3818.8,5.34710365]
[1761229302598,0.001,3818.9,3818.8,3.79190365]
[1761229303999,0.001,3818.9,3818.8,5.34710365]
[1761229304297,0.001,3818.9,3818.8,8.89710365]
[1761229305697,1e-08,3819.3,3819.2,3.12522939]
[1761229305879,1e-08,3819.3,3819.2,4.70661288]
[1761229306080,1e-08,3819.3,3819.2,5.15701288]
[1761229306276,0.001,3819.7,3819.5,3.12502373]
[1761229306483,1e-08,3820.0,3819.9,3.12474957]
[1761229306667,1e-08,3820.0,3819.9,5.34634957]
[1761229307199,1e-08,3820.0,3819.9,1.17328]
[1761229307399,1e-08,3820.0,3819.9,3.79114957]
[1761229307586,1e-08,3820.0,3819.9,5.47754957]
[1761229308494,1e-08,3820.0,3819.9,5.34634957]
[1761229308693,1e-08,3820.0,3819.9,5.47754957]
[1761229312638,1e-08,3820.0,3819.9,9.02354957]
[1761229313012,1e-08,3820.0,3819.9,8.51666957]
[1761229313201,1e-08,3820.0,3819.9,9.02354957]
[1761229313533,2.81069227,3822.5,3820.4,2.06208]
[1761229313714,2.81069227,3822.5,3821.5,0.50688]
[1761229313715,0.12762278,3822.4,3821.5,0.50688]
[1761229314031,0.12762278,3822.4,3820.5,3.546]
[1761229314032,1.68282278,3822.4,3821.7,2.61662892]
[1761229314209,4.29898804,3822.4,3821.7,2.61662892]
[1761229314413,4.29898804,3822.4,3821.3,0.216]
[1761229314414,0.12762278,3822.4,3821.4,0.50688]
[1761229314725,0.1028,3822.3,3821.7,2.61661747]
[1761229314927,0.1028,3822.3,3821.1,0.02617047]
[1761229315134,6.35669765,3822.5,3821.7,2.61658487]
[1761229315435,6.35669765,3822.5,3821.1,0.47657047]
[1761229315436,3.7406,3822.5,3821.8,2.6165681]
[1761229315745,0.21942278,3822.5,3821.2,2.61697895]
[1761229315952,0.1946,3822.5,3822.0,2.61642958]
[1761229316099,0.1946,3822.5,3822.2,2.61629011]
[1761229316300,0.1946,3822.5,3821.8,0.50688]
[1761229316637,0.0002,3822.7,3822.6,2.6160205]
[1761229316996,0.0002,3822.7,3822.0,1.5552]
[1761229317306,0.0002,3822.7,3821.9,0.4504]
[1761229317307,0.0002,3822.7,3821.9,0.50688]
[1761229317498,0.0002,3822.7,3822.2,2.61624943]
[1761229317696,0.0002,3822.7,3822.6,2.6160205]
[1761229318130,0.0002,3822.7,3822.6,2.6421807]
[1761229318536,0.0002,3822.7,3822.5,2.61607044]
[1761229318698,0.0002,3822.7,3822.0,0.50688]
[1761229318895,0.0002,3822.7,3822.2,2.61627684]
[1761229319098,0.0002,3822.7,3821.8,0.50688]
[1761229319330,0.1039,3822.7,3821.8,0.50688]
[1761229319567,0.1039,3822.7,3820.9,0.216]
[1761229319833,0.02482278,3822.6,3821.4,2.61677563]
[1761229320032,0.02482278,3822.6,3820.9,0.216]
[1761229320233,1.5552,3822.3,3821.1,2.61704702]
[1761229320402,0.0002,3822.7,3821.9,2.61644162]
[1761229320597,0.0002,3822.7,3822.0,0.02616431]
[1761229320810,0.0002,3822.7,3822.2,2.61625557]
[1761229321004,0.1928,3822.3,3821.8,2.6165375]
[1761229321308,0.001,3822.6,3821.7,0.50688]
[1761229321512,0.001,3822.6,3821.6,0.50688]
[1761229321809,0.001,3822.6,3821.4,0.02616841]
[1761229321810,0.001,3822.6,3822.0,0.50688]
[1761229322022,0.001,3822.6,3822.5,2.61608894]
[1761229322317,0.001,3822.6,3822.5,3.14912982]
[1761229322624,0.001,3822.6,3822.5,3.12296894]
[1761229322944,0.001,3822.6,3822.5,3.55316894]
[1761229323144,0.001,3822.6,3822.5,3.12296894]
[1761229323351,0.001,3822.6,3822.5,3.25416894]
[1761229323560,0.001,3822.6,3822.5,3.68436894]
[1761229323739,0.001,3822.6,3822.5,3.25416894]
[1761229324127,0.001,3822.6,3822.5,3.68436894]
[1761229324330,0.001,3822.6,3822.5,3.25416894]
[1761229324556,0.001,3822.6,3822.5,3.68436894]
[1761229324752,0.001,3822.6,3822.5,0.63808]
[1761229324940,0.001,3822.6,3822.5,0.1312]
[1761229325126,0.0002,3822.6,3822.5,2.74728894]
[1761229325326,0.0002,3822.6,3822.5,3.17748894]
[1761229325534,0.0002,3822.6,3822.5,5.23956894]
[1761229325943,0.0002,3822.6,3822.5,4.80936894]
[1761229326551,0.0002,3822.6,3822.5,2.61608894]
[1761229326955,0.0002,3822.6,3822.5,3.12296894]
[1761229327254,0.0002,3822.6,3822.5,0.50688]
[1761229327461,0.0002,3822.6,3822.5,3.12296894]
[1761229327623,0.0002,3822.6,3822.5,3.55316894]
[1761229327824,0.0002,3822.6,3822.5,3.12296894]
[1761229328260,0.0002,3822.6,3822.5,0.02616088]
[1761229328559,0.0002,3822.6,3822.5,3.12296894]
[1761229330945,0.0002,3822.6,3822.5,3.57932982]
[1761229331352,0.0002,3822.6,3822.5,8.67552982]
[1761229331547,0.0002,3822.6,3822.5,8.64936894]
[1761229332184,0.0002,3822.6,3822.5,5.10836894]
[1761229332362,0.0002,3822.6,3822.5,8.64836894]
[1761229333049,0.0002,3822.6,3822.5,4.67816894]
[1761229333251,0.0002,3822.6,3822.5,8.67452982]
[1761229333478,0.0002,3822.6,3822.5,8.64836894]
[1761229334553,0.0002,3822.6,3822.5,4.67816894]
[1761229334868,0.0002,3822.6,3822.4,2.61613772]
[1761229335072,0.0002,3822.6,3822.5,2.61608894]
[1761229335385,0.0002,3822.6,3821.6,0.2343]
[1761229335547,0.0002,3822.6,3822.3,2.61622245]
[1761229335748,0.0002,3822.6,3821.6,0.2343]
[1761229335950,0.1011,3822.6,3821.6,0.2343]
[1761229336367,0.0002,3822.6,3821.6,0.2343]
[1761229336568,0.0002,3822.6,3822.3,0.1312]
[1761229337082,0.1011,3822.6,3822.3,0.1312]
[1761229337474,0.0002,3822.6,3822.3,0.1312]
[1761229337670,0.1009,3822.5,3822.3,0.1312]
[1761229339270,0.1009,3822.5,3822.3,0.1332]
[1761229339604,0.0002,3822.6,3822.3,0.1332]
[1761229339786,0.0002,3822.6,3822.3,2.74941439]
[1761229339965,0.0002,3822.6,3822.5,2.61608894]
[1761229340165,0.0002,3822.6,3822.5,3.14912982]
[1761229340466,0.1011,3822.6,3822.3,0.002]
[1761229341075,0.0002,3822.6,3822.3,0.002]
[1761229341371,0.0002,3822.6,3822.5,2.61608894]
[1761229341699,0.0002,3822.6,3822.3,0.50888]
[1761229341879,0.1011,3822.6,3822.3,0.002]
[1761229342572,2.71713509,3822.6,3822.3,0.002]
[1761229342974,0.1009,3822.5,3822.3,0.002]
[1761229344475,0.0002,3822.6,3822.4,2.61610244]
[1761229344774,0.0002,3822.6,3822.4,2.61615069]
[1761229344974,0.0002,3822.6,3822.3,2.61818233]
[1761229345175,0.0002,3822.6,3822.4,2.61614013]
[1761229345503,0.0002,3822.6,3822.5,3.12296894]
[1761229345801,0.0002,3822.6,3822.5,3.59842982]
[1761229346210,0.0002,3822.6,3822.5,5.15362982]
[1761229347311,0.001,3823.0,3822.8,0.50688]
[1761229347531,1e-08,3823.4,3822.9,8.69035336]
[1761229347693,0.001,3824.1,3823.6,2.61530918]
[1761229347879,0.001,3824.1,3824.0,4.67714276]
[1761229348080,0.001,3824.1,3824.0,4.70329338]
[1761229348413,0.2964,3826.8,3825.7,0.50688]
[1761229348589,0.2964,3826.8,3825.8,0.53301832]
[1761229348912,2.61353504,3826.3,3825.2,2.06208]
[1761229349099,0.099,3826.2,3825.4,0.50688]
[1761229349298,0.099,3826.2,3825.5,2.6139759]
[1761229349510,0.0982,3826.2,3825.3,0.50688]
[1761229349700,0.0982,3826.2,3825.5,0.50688]
[1761229349900,0.0982,3826.2,3825.3,0.53302174]
[1761229350102,0.0982,3826.2,3825.7,0.1304]
[1761229350306,0.12302278,3826.2,3825.7,0.1304]
[1761229350483,0.1304,3826.1,3825.6,0.1304]
[1761229350904,1.6534,3826.2,3824.8,0.53302515]
[1761229350905,0.1986,3825.7,3824.8,0.53302515]
[1761229351287,6.14954186,3826.3,3824.8,0.53302515]
[1761229351288,3.536,3826.3,3825.0,3.12125908]
[1761229351483,3.536,3826.3,3825.1,0.0261431]
[1761229351685,0.099,3826.2,3825.2,0.50688]
[1761229352013,2.61363575,3826.1,3825.4,3.12097453]
[1761229352210,2.61342265,3826.4,3825.9,2.61374864]
[1761229352211,3.536,3826.4,3825.9,2.61374864]